[Event "44th Chess Olympiad Women 2022"]
[Site "Chennai"]
[Date "2022.08.05"]
[Round "7.21"]
[White "Johansson, Viktoria"]
[Black "Fang, Kun"]
[Result "1-0"]
[ECO "D45"]
[WhiteElo "2041"]
[BlackElo "1766"]
[Annotator "TA"]
[PlyCount "181"]
[EventDate "2022.07.29"]
[EventType "team-tourn"]
[EventCountry "IND"]
[SourceTitle "playchess.com"]
[Source "ChessBase"]
[SourceQuality "1"]
[WhiteTeam "Sweden"]
[BlackTeam "SGP"]
[WhiteTeamCountry "SWE"]
[TimeControl "40/5400+30:1800+30"]

{[%evp 25,181,67,71,41,44,-36,6,10,10,-44,-8,-5,0,-10,-5,-9,-9,-15,-4,-15,-15,-11,-16,-18,-12,-39,0,0,-3,-13,5,5,464,0,2,2,48,50,43,0,37,0,139,-40,13,3,2,0,2,-45,0,-3,0,0,2,0,0,0,14,15,35,38,165,165,165,165,165,165,165,165,165,165,165,165,165,165,287,166,152,148,150,159,144,143,143,132,175,142,304,295,256,210,579,497,614,495,651,632,554,537,760,635,1354,1282,1455,1423,2066,1827,4442,1395,2670,2468,5089,6425,7378,6608,6431,5616,4578,2810,29970,29971,29974,29974,29980,5327,29969,29965,29974,29970,29980,29981,29981,29982,29982,29983,29983,29984,29985,29986,29986,29976,29970,0,29986,29987,29996,29991,29991,29992,29992,29993,29993,29994,29994,29995,29995,29995]} 1. d4 {[%emt 0:00:07]} d5 {[%emt 0:00:03]} 2. c4 {[%emt 0:00:09]} c6 {[%emt 0:00:02]} 3. Nf3 {[%emt 0:00:08]} Nf6 {[%emt 0:00:05]} 4. Nc3 {[%emt 0:00:37]} e6 {[%emt 0:00:17]} 5. e3 {[%emt 0:02:25]} Nbd7 {[%emt 0:00:16]} 6. Be2 {[%emt 0:01:08]} Bd6 {[%emt 0:00:28]} 7. O-O {[%emt 0:00:44]} O-O {[%emt 0:00:41]} 8. Qc2 {[%emt 0:09:10]} Qe7 {[%emt 0:07:25]} 9. e4 {[%emt 0:07:01]} dxe4 {[%emt 0:00:11]} 10. Nxe4 {[%emt 0:00:09]} Nxe4 {[%emt 0:00:05]} 11. Qxe4 {[%emt 0:00:14]} e5 {[%emt 0:10:27]} 12. Bg5 {[%emt 0:13:21]} Qe6 {[%emt 0:08:13]} 13. c5 {[%emt 0:10:28]} Bc7 {[%emt 0:02:26] [#]} 14. Rac1 $146 {[%emt 0:07:01] White is much more active. The black rooks are badly placed. D45: Semi-Slav: 5 e3.} ({Predecessor:} 14. Bd3 Qg6 15. Qe3 exd4 16. Qxd4 Qh5 17. h4 h6 18. Be7 Re8 19. Rfe1 Nf8 20. Bd6 Rxe1+ 21. Rxe1 Bxd6 22. cxd6 {1-0 (37) Vakhidov,J (2500)-Das,A (2451) Hastings 2018}) 14... Qg6 {[%emt 0:12:30]} 15. Qe3 {[%emt 0:08:32]} (15. Qxg6 $14 hxg6 16. b4) 15... exd4 {[%emt 0:07:58]} 16. Qxd4 {[%emt 0:02:12] The position is equal.} Ne5 {[%emt 0:05:32]} 17. Qh4 {[%emt 0:08:28]} (17. Be7 $11 Nxf3+ 18. Bxf3) 17... Nxf3+ {[%emt 0:05:53]} (17... h6 {keeps more tension.} 18. Be7 Re8 19. Rfd1 Qf5) 18. Bxf3 {[%emt 0:00:15]} h6 {[%emt 0:04:21]} 19. Be3 {[%emt 0:15:39]} Re8 {[%emt 0:03:57]} 20. Rfe1 {[%emt 0:01:07]} Be6 {[%emt 0:06:53]} 21. a3 {[%emt 0:01:00]} Rad8 {[%emt 0:01:16]} 22. Qb4 {[%emt 0:05:24]} Re7 {[%emt 0:02:35]} 23. Bf4 {[%emt 0:00:35]} Bxf4 {[%emt 0:04:47]} 24. Qxf4 {[%emt 0:00:03]} Red7 {[%emt 0:00:12]} 25. Rc3 {[%emt 0:15:55]} Bd5 {[%emt 0:12:21]} 26. h3 {[%emt 0:00:00]} Be6 {[%emt 0:02:57]} 27. Be4 {[%emt 0:00:00]} Qh5 {[%emt 0:00:11]} 28. Rg3 {[%emt 0:00:00] aiming for Qf6.} Rd4 $2 {[%emt 0:01:14][%mdl 8192]} (28... Kh8 $11) 29. Qe3 $2 {[%emt 0:00:00]} (29. Qf6 $1 $18 {[%csl Gg3][%cal Rf6g7]} Bg4 30. Rxg4 Qxg4 31. Qxd8+ Rxd8 32. hxg4) 29... Kh8 {[%emt 0:00:36]} 30. b4 {[%emt 0:00:00]} a5 {[%emt 0:00:19]} (30... Qe5 $11 {is more appropriate.} 31. Qc3 Qf6) 31. Bf3 $14 {[%emt 0:00:00]} Qh4 {[%emt 0:00:19]} 32. Qe5 {[%emt 0:00:00][%csl Gg3][%cal Re5g7]} Rg8 {[%emt 0:01:02]} 33. Be4 {[%emt 0:00:00]} Rd2 {[%emt 0:00:48]} (33... Qf6 $11 34. Qxf6 gxf6) 34. Bb1 $2 {[%emt 0:00:00]} (34. bxa5 $16 {[%cal Oa5a6] a6! is the strong threat.} Qe7 35. Qc3) 34... Rd5 {[%emt 0:00:27]} (34... axb4 $15 35. Re4 Qe7 36. Rxb4 Rd5) 35. Qc3 {[%emt 0:00:00]} axb4 {[%emt 0:00:27]} 36. axb4 $40 {[%emt 0:00:00][%mdl 128] Black needs to defend precisely.} Qd4 {[%emt 0:00:07]} 37. Qa3 {[%emt 0:00:00]} (37. Ba2 $11 Qxc3 38. Rxc3) 37... Bf5 {[%emt 0:00:40]} (37... Qd2 $5 {[%cal Rd2e1]} 38. Rge3 Rd4 $15) 38. Rf3 {[%emt 0:00:00]} Bxb1 {[%emt 0:00:33]} 39. Rxb1 {[%emt 0:00:00]} Qe4 {[%emt 0:00:13]} 40. Rf1 {[%emt 0:00:00]} f6 {[%emt 0:00:37]} 41. Re3 {[%emt 0:11:02]} Qd4 {[%emt 0:01:18]} 42. Rfe1 {[%emt 0:02:17]} Rf5 {[%emt 0:00:54]} 43. Qd3 {[%emt 0:01:01]} Rf4 {[%emt 0:02:11]} ({Better is} 43... Qf4 $14) 44. Qg6 $1 $18 {[%emt 0:03:11]} f5 {[%emt 0:03:10][%cal Of4f2]} 45. g3 {[%emt 0:00:48]} Re4 {[%emt 0:01:42]} 46. Rxe4 {[%emt 0:00:07]} fxe4 {[%emt 0:00:04]} 47. Qxe4 {[%emt 0:00:20][%mdl 4096] Endgame KQR-KQR} Qd2 {[%emt 0:02:41]} 48. Kg2 {[%emt 0:03:39]} Ra8 {[%emt 0:02:23]} 49. Re2 {[%emt 0:01:56]} Qd1 {[%emt 0:00:15]} 50. Qf3 {[%emt 0:00:34][%cal Oe2e8] Strongly threatening Re8+!} Qb1 {[%emt 0:00:47]} (50... Qd7 {was worth a try.} 51. Re5 Rd8) 51. Qg4 {[%emt 0:01:46]} (51. Re4 $142) 51... Ra1 {[%emt 0:03:47][%csl Ga1][%cal Rb1h1]} 52. Re8+ {[%emt 0:00:09]} Kh7 {[%emt 0:00:08][%csl Ga1][%cal Rb1h1]} 53. Qe4+ {[%emt 0:00:06]} Qxe4+ {[%emt 0:00:18]} 54. Rxe4 $16 {[%emt 0:00:05] KR-KR} Rb1 {[%emt 0:00:07]} 55. g4 {[%emt 0:01:34]} Rb2 {[%emt 0:02:18]} 56. h4 {[%emt 0:00:20][%cal Bh3h4,Bh4h5][%mdl 32] Threatens to win with h5.} Kg8 $2 {[%emt 0:04:01]} (56... h5 $16 57. gxh5 Kh6) 57. h5 $18 {[%emt 0:03:53]} Kf7 {[%emt 0:00:31]} 58. Kg3 {[%emt 0:00:18]} Rb1 $2 {[%emt 0:02:56]} (58... Rd2 {is more resistant.} 59. Rf4+ Ke7 60. Re4+ Kf7) 59. Rd4 {[%emt 0:01:49]} Ke6 {[%emt 0:00:53]} 60. Kf4 {[%emt 0:00:21]} Rb2 {[%emt 0:00:22]} 61. f3 {[%emt 0:00:25]} Rb3 {[%emt 0:00:21]} 62. Ke4 {[%emt 0:00:57]} Rb1 {[%emt 0:00:40]} 63. Rd6+ {[%emt 0:01:53]} Ke7 {[%emt 0:00:09] [#]} 64. Kf5 $1 {[%emt 0:01:24]} Rb3 {[%emt 0:05:53]} 65. Kg6 {[%emt 0:00:20]} Rxf3 {[%emt 0:00:18]} 66. Rd4 {[%emt 0:00:45]} Kf8 {[%emt 0:01:13] [#]} 67. Rd8+ $1 {[%emt 0:00:20]} Ke7 {[%emt 0:00:03]} 68. Rb8 {[%emt 0:00:11]} Rf4 {[%emt 0:00:24]} 69. Rxb7+ {[%emt 0:00:09]} Ke6 {[%emt 0:02:37]} 70. Kxg7 {[%emt 0:00:09] g5 would kill now.} Rxg4+ {[%emt 0:00:15]} 71. Kxh6 {[%emt 0:00:04]} Kf6 {[%emt 0:02:02]} 72. Kh7 {[%emt 0:00:52]} Rg5 {[%emt 0:01:42]} 73. h6 {[%emt 0:00:08]} Rg4 {[%emt 0:00:17]} 74. Rb6 {[%emt 0:00:47]} Kf7 {[%emt 0:00:23]} 75. Rb8 {[%emt 0:00:44]} (75. Rxc6 $142 Rxb4 76. Rg6 Rf4 77. c6 Ke7 78. Rg7+ Kd6 79. c7 Rf8 80. Kg6) 75... Rh4 {[%emt 0:00:29]} 76. Rb7+ {[%emt 0:00:36]} Kf6 {[%emt 0:00:15]} 77. Rb6 {[%emt 0:00:15]} Kf7 {[%emt 0:00:04]} 78. Rxc6 {[%emt 0:00:03]} Rxb4 {[%emt 0:00:22]} 79. Rg6 {[%emt 0:01:17]} Rb8 {[%emt 0:01:04]} 80. c6 {[%emt 0:00:00]} Ra8 {[%emt 0:00:37]} 81. c7 {[%emt 0:00:00]} Rc8 {[%emt 0:00:28]} 82. Rc6 {[%emt 0:00:00]} Kf8 {[%emt 0:00:18]} 83. Rc1 {[%emt 0:00:00]} Kf7 {[%emt 0:00:35]} 84. Rc6 {[%emt 0:00:39]} Kf8 $1 {[%emt 0:00:10]} 85. Kg6 {[%emt 0:00:11] White mates.} Kg8 {[%emt 0:00:37]} 86. Kf6 {[%emt 0:00:19]} Kh8 {[%emt 0:01:18]} 87. Ke7 {[%emt 0:00:11]} Kh7 {[%emt 0:00:25]} 88. Kd7 {[%emt 0:00:06]} Rf8 {[%emt 0:00:22]} 89. c8=Q {[%emt 0:00:52]} Rf7+ {[%emt 0:00:08]} 90. Ke6 {[%emt 0:00:34]} Re7+ {[%emt 0:00:14]} 91. Kd6 {[%emt 0:00:06] Weighted Error Value: White=0.35/Black=0.52} 1-0

[Event "44th Chess Olympiad Women 2022"]
[Site "Chennai"]
[Date "2022.08.05"]
[Round "7.21"]
[White "Hng, Mei-Xian Eunice"]
[Black "Cramling Bellon, Anna"]
[Result "0-1"]
[ECO "B22"]
[WhiteElo "1823"]
[BlackElo "2065"]
[Annotator "TA"]
[PlyCount "128"]
[EventDate "2022.07.29"]
[EventType "team-tourn"]
[EventCountry "IND"]
[SourceTitle "playchess.com"]
[Source "ChessBase"]
[SourceQuality "1"]
[WhiteTeam "SGP"]
[BlackTeam "Sweden"]
[BlackTeamCountry "SWE"]
[TimeControl "40/5400+30:1800+30"]

{[%evp 10,127,-8,-11,0,-6,29,0,-7,-14,0,-11,0,-39,10,1,12,30,13,-18,-30,-162,-149,-221,-218,-209,-207,-217,-167,-226,-216,-208,-222,-213,-193,-200,-202,-200,-166,-1061,-1061,-1041,77,-1006,-1036,-1202,-1191,-1088,-1070,-956,-475,-477,-469,-473,-461,-451,-462,-458,-434,-392,-182,-193,-198,-198,-200,-200,-200,-197,-198,-319,-305,-1092,-1092,-1085,-1085,-1172,-1172,-1138,-1130,-1107,-1073,-1375,-1313,-29971,-1123,-29974,-29975,-29966,-29968,-29979,-29980,-29982,-29982,-29982,-29983,-29983,-29984,-29983,-29975,-29978,-515,-515,-515,-515,-515,-29980,-29979,-29977,-29976,-29976,-29976,-29981,-29975,-29983,-29984,-29986,-29987,-29992,-437,-29999]} 1. e4 {[%emt 0:00:59][%cal Be2e4,Be4e5][%mdl 32]} c5 {[%emt 0:00:04]} 2. d4 {[%emt 0:00:23]} cxd4 {[%emt 0:00:19]} 3. c3 {[%emt 0:00:15]} Nf6 {[%emt 0:00:13]} 4. e5 {[%emt 0:00:22]} Nd5 {[%emt 0:00:18]} 5. Qxd4 {[%emt 0:00:12]} e6 {[%emt 0:00:30]} 6. Bd3 {[%emt 0:00:44]} Nc6 {[%emt 0:03:08] B22: Sicilian: 2 c3.} 7. Qe4 {[%emt 0:00:22]} f5 $1 {[%emt 0:04:21][%mdl 4] is now more promising than 7...d6.} 8. exf6 {[%emt 0:00:20]} Nxf6 {[%emt 0:00:07] The position is equal.} 9. Qh4 {[%emt 0:00:03]} Ne5 {[%emt 0:04:30][%cal Bc6e5,Be5f7,Bf7h8][%mdl 32] Against Bg6+} 10. Bc2 {[%emt 0:03:29] [#]} d5 $146 {[%emt 0:02:57]} ({Predecessor:} 10... Nf7 11. Nf3 Be7 12. O-O Qb6 13. c4 d6 14. Nc3 Bd7 15. b3 Bc6 16. Qh3 Bd7 {1-0 (40) Krauss,J (2022)-Sippl,M (1983) Nuremberg 2008}) 11. Bg5 {[%emt 0:12:19]} Bd6 {[%emt 0:08:29]} (11... Qb6 $15 12. Bxf6 gxf6 13. Qxf6 Rg8 14. Qxe5 Qxb2) 12. Nd2 $11 {[%emt 0:03:59]} h6 {[%emt 0:09:58]} 13. Ngf3 {[%emt 0:14:06]} Nf7 {[%emt 0:15:06]} 14. Bg6 {[%emt 0:09:19]} O-O {[%emt 0:01:03]} 15. Be3 {[%emt 0:01:08] White is on the road to losing.} (15. Bxf6 $11 Qxf6 16. Qxf6 gxf6 17. O-O) 15... e5 $19 {[%emt 0:01:22]} 16. O-O {[%emt 0:16:18]} (16. O-O-O $17 {was called for.}) 16... Nh8 $1 {[%emt 0:08:11]} 17. Bc2 {[%emt 0:02:07]} e4 {[%emt 0:00:49]} 18. Nxe4 {[%emt 0:03:55]} ({Not} 18. Nd4 $2 Ng6 19. Qg3 Bxg3 $19) 18... Nxe4 {[%emt 0:07:20]} 19. Bxe4 {[%emt 0:00:45]} (19. Qxd8 {was necessary.} Rxd8 20. Rad1) 19... dxe4 {[%emt 0:05:53]} 20. Qxe4 {[%emt 0:00:14]} Re8 {[%emt 0:10:18]} 21. Qd5+ {[%emt 0:01:24]} Be6 {[%emt 0:00:06]} 22. Qxb7 {[%emt 0:01:45]} Rb8 {[%emt 0:06:16]} 23. Qxa7 {[%emt 0:01:06]} Bd5 {[%emt 0:00:11] Hoping for ...Bxf3. This bishop pair is nice.} ({Worse is} 23... Re7 24. Qd4 $17) 24. Nd2 {[%emt 0:06:52] [#]} ({Wrong is} 24. Bd4 $2 Rb7 25. Qa6 Bxf3 $19) (24. Qd4 Bxf3 25. gxf3) 24... Bxh2+ $1 {[%emt 0:09:19][%mdl 576] Decoy} 25. Kxh2 {[%emt 0:03:38]} Qh4+ $1 {[%emt 0:00:05]} 26. Kg1 {[%emt 0:00:04] [#]} Bxg2 $1 {[%emt 0:00:13][%mdl 576] Decoy} 27. Kxg2 {[%emt 0:01:12]} (27. f3 Qh1+) 27... Qg4+ {[%emt 0:00:08]} 28. Kh2 {[%emt 0:00:43]} Rb5 {[%emt 0:00:49][%cal Rb5h5]} 29. Bc5 {[%emt 0:05:39]} Re5 {[%emt 0:00:48]} (29... Qh5+ $142 30. Kg3 Rxc5) 30. Qa8+ {[%emt 0:01:29]} Kh7 {[%emt 0:00:07][%cal Re5h5]} 31. Qg2 {[%emt 0:01:07]} Qf4+ {[%emt 0:02:02]} 32. Qg3 {[%emt 0:00:17]} Rh5+ $1 {[%emt 0:00:06]} 33. Kg2 {[%emt 0:00:17] [#]} Rg5 $1 {[%emt 0:00:10][%mdl 64] Pin} 34. Nf3 {[%emt 0:01:00]} Rxg3+ {[%emt 0:01:38] Dancing on a razor blade.} (34... Rbxc5 $142 35. Nxg5+ Rxg5) 35. fxg3 {[%emt 0:00:05]} Rxb2+ {[%emt 0:00:12]} 36. Rf2 {[%emt 0:03:53]} Rxf2+ {[%emt 0:00:19]} 37. Kxf2 {[%emt 0:00:37]} Qf5 {[%emt 0:00:30]} 38. Bd4 {[%emt 0:00:55]} Nf7 {[%emt 0:00:12][%mdl 1024] And now ...Ng5 would win. Black has strong compensation.} 39. Rf1 {[%emt 0:02:39]} (39. Kg2 {might work better.}) 39... Ng5 {[%emt 0:00:36]} 40. Ke2 {[%emt 0:03:29]} (40. Kg1 Nxf3+ 41. Kg2) 40... Qe4+ {[%emt 0:00:56]} 41. Be3 {[%emt 0:30:41]} Qc4+ {[%emt 0:05:13]} 42. Ke1 {[%emt 0:00:00]} Qxc3+ {[%emt 0:01:56]} 43. Ke2 {[%emt 0:00:00]} Qc4+ {[%emt 0:05:02]} 44. Ke1 {[%emt 0:00:00]} Ne4 {[%emt 0:01:01]} 45. Bf4 {[%emt 0:00:00]} g5 {[%emt 0:08:09]} 46. Be5 {[%emt 0:00:00]} g4 {[%emt 0:01:12]} 47. Bf4 {[%emt 0:00:00]} gxf3 {[%emt 0:02:04]} 48. Rxf3 {[%emt 0:00:00]} Qxa2 {[%emt 0:01:19]} 49. Kf1 {[%emt 0:00:00]} Qc2 {[%emt 0:05:49]} 50. Be3 {[%emt 0:00:00]} Qd1+ {[%emt 0:02:17]} 51. Kg2 {[%emt 0:00:00]} Qe2+ {[%emt 0:00:10]} 52. Bf2 {[%emt 0:00:00]} Kg6 {[%emt 0:00:56]} 53. Rf4 {[%emt 0:00:00]} Kg5 {[%emt 0:00:26]} 54. Rf3 {[%emt 0:00:00]} Nxf2 {[%emt 0:01:35]} (54... h5 $142 55. Rf7 Kg6 56. Rf4 Nd2 57. Kh3 Nf3 58. Kg2 Nd2 59. Kg1 Qf1+ 60. Kh2 {[#]} Ne4 $1 {[%mdl 512]} 61. Bb6 Qe2+ 62. Kh1 Nxg3+ 63. Kg1 Qb2 64. Rf8 Qxb6+ 65. Kg2 Ne4 66. Kh1 Kg5 67. Kg2 Qe3 68. Kh2 Qe2+ 69. Kg1 Kh4 70. Rf7 Kh3 71. Rf3+ Ng3 72. Rxg3+ Kxg3 73. Kh1 Qh2#) 55. Rxf2 {[%emt 0:00:00][%mdl 4096] Endgame KQ-KR} Qe4+ {[%emt 0:00:05]} 56. Kh2 {[%emt 0:00:00]} h5 {[%emt 0:00:42] ( -> ...h4)} 57. Rf8 {[%emt 0:00:00]} (57. Rf4 $19 Qd5 58. Kg1) 57... Qc2+ {[%emt 0:00:38]} 58. Kh3 {[%emt 0:00:00]} Qc4 {[%emt 0:00:32]} 59. Rf4 {[%emt 0:00:00]} Qe2 {[%emt 0:00:08]} 60. Rf8 {[%emt 0:00:00]} Qe1 {[%emt 0:00:38][%cal Re1h1]} 61. Rg8+ {[%emt 0:00:00]} Kh6 {[%emt 0:00:22][%cal Re1h1]} 62. Rh8+ {[%emt 0:00:00]} Kg6 {[%emt 0:00:23][%cal Re1h1]} 63. Rg8+ {[%emt 0:00:00]} Kh7 {[%emt 0:00:13]} (63... Kf7 $142 64. Rg7+ Kxg7 65. Kg2 Qe2+ 66. Kg1 Kf6 67. g4 hxg4 68. Kh1 g3 69. Kg1 Qh2+ 70. Kf1 Qf2#) 64. Rg5 {[%emt 0:00:00]} (64. Rh8+ $19 Kxh8 65. Kh4 Kg8 66. Kg5 Qe5+ 67. Kg6 Kf8 68. Kh6 Qxg3 69. Kxh5 Kf7 70. Kh6 Qh4#) 64... Qh1# {[%emt 0:00:08] Weighted Error Value: White=0.74/Black=0.22 (precise)} 0-1

[Event "44th Chess Olympiad Women 2022"]
[Site "Chennai"]
[Date "2022.08.05"]
[Round "7.22"]
[White "Demchenko, Svitlana"]
[Black "Trippold, Denise"]
[Result "1/2-1/2"]
[ECO "C01"]
[WhiteElo "2122"]
[BlackElo "2151"]
[Annotator "TA"]
[PlyCount "54"]
[EventDate "2022.07.29"]
[EventType "team-tourn"]
[EventCountry "IND"]
[SourceTitle "playchess.com"]
[Source "ChessBase"]
[SourceQuality "1"]
[WhiteTeam "Canada"]
[BlackTeam "Austria"]
[WhiteTeamCountry "CAN"]
[BlackTeamCountry "AUT"]
[TimeControl "40/5400+30:1800+30"]

{[%evp 10,54,0,-7,0,0,0,0,0,0,0,0,0,0,70,66,52,56,52,75,85,66,62,8,106,112,97,93,112,25,28,-49,53,22,31,0,9,20,31,15,15,0,32,0,31,0,48]} 1. e4 {[%emt 0:00:04]} e6 {[%emt 0:00:14]} 2. d4 {[%emt 0:00:09]} d5 {[%emt 0:00:15]} 3. Bd3 {[%emt 0:00:06][%cal Bf1d3,Bd3e4,Be4f3][%mdl 32]} dxe4 {[%emt 0:01:14]} 4. Bxe4 {[%emt 0:00:08]} Nf6 {[%emt 0:00:20]} 5. Bf3 {[%emt 0:00:07]} c5 {[%emt 0:01:03]} 6. Ne2 {[%emt 0:00:09]} Nc6 {[%emt 0:00:30][%cal Rc5d4] C01: French: Exchange Variation.} 7. Be3 {[%emt 0:00:08]} cxd4 {[%emt 0:00:40]} 8. Nxd4 {[%emt 0:00:07]} Ne5 {[%emt 0:01:22]} 9. Nc3 $40 {[%emt 0:00:13][%mdl 128] White has some attack.} a6 {[%emt 0:00:31]} (9... Bb4 {feels hotter.} 10. Ndb5 Qa5 11. O-O O-O) 10. Qe2 {[%emt 0:00:14]} Nxf3+ {[%emt 0:00:28]} 11. Qxf3 {[%emt 0:00:10]} Be7 {[%emt 0:02:51]} (11... e5 $11 12. Nb3 Qc7) 12. O-O-O $1 $14 {[%emt 0:00:44][%cal Od4f5] Black must now prevent Nf5!} Qc7 {[%emt 0:05:03]} 13. g4 {[%emt 0:06:40][%cal Bg2g4,Bg4g5][%mdl 32]} O-O {[%emt 0:03:51]} 14. g5 {[%emt 0:03:24]} Ne8 {[%emt 0:06:59] [#]} 15. Rhg1 $146 {[%emt 0:05:20]} ({Predecessor:} 15. h4 Bd7 16. h5 Rc8 17. Bf4 Qc5 18. Ne4 Qa5 19. Kb1 f6 20. g6 h6 21. Qe3 {1-0 (33) Bernadskiy,V (2593)-Sadzikowski,D (2504) Lorca 2019}) 15... Bd7 {[%emt 0:17:07]} 16. Ne4 {[%emt 0:10:54]} (16. Bf4 $14 Bd6 17. Bg3) 16... Bc6 {[%emt 0:09:25]} (16... g6 $11) 17. Nxc6 $16 {[%emt 0:03:25]} Qxc6 {[%emt 0:00:22]} 18. Rd3 {[%emt 0:00:29]} Kh8 {[%emt 0:12:19]} (18... Rc8 $2 19. Rc3 Qd7 20. Nf6+ $1 {[%mdl 512]} Nxf6 21. gxf6 $18) 19. Bd4 {[%emt 0:05:06]} (19. Rgd1 $16) 19... Nd6 $11 {[%emt 0:03:59]} ({But not} 19... Rc8 20. Rc3 Qd7 21. Rd1 Rxc3 22. Qxc3 $16 (22. Bxc3 Qc8 $14)) 20. Bf6 {[%emt 0:34:55] [#]} Nf5 {[%emt 0:14:49]} ({Much worse is} 20... Nxe4 21. Bxe7 Rfe8 22. Ba3 $11) (20... gxf6 21. gxf6 Rfc8 22. Qd1 Nxe4 23. fxe7 $17) (20... Rfc8 $1 $15 21. Rc3 Qxe4 22. Qxe4 Nxe4 23. Rxc8+ Rxc8 24. Bxe7 Nxf2) 21. Bxe7 {[%emt 0:11:05]} (21. Qg4 {looks sharper.} gxf6 22. gxf6 Rg8 23. fxe7 Nxe7 24. Ng5) 21... Nxe7 {[%emt 0:00:07]} 22. Rc3 {[%emt 0:00:38]} Qd5 {[%emt 0:02:01]} 23. Kb1 {[%emt 0:04:45]} Rac8 {[%emt 0:01:44] Prevents Rc7.} 24. Rd3 {[%emt 0:02:38]} Qc6 {[%emt 0:00:11]} 25. Rc3 {[%emt 0:00:39] Active counter play!} Qd5 {[%emt 0:00:10]} 26. Rd3 {[%emt 0:00:18]} Qc6 {[%emt 0:00:08]} 27. Rc3 {[%emt 0:00:21]} Qd5 {[%emt 0:06:14] Weighted Error Value: White=0.23 (precise) /Black=0.24 (precise)} 1/2-1/2

[Event "44th Chess Olympiad Women 2022"]
[Site "Chennai"]
[Date "2022.08.05"]
[Round "7.22"]
[White "Guo, Yu Han"]
[Black "Hapala, Elisabeth"]
[Result "0-1"]
[ECO "E46"]
[WhiteElo "1630"]
[BlackElo "2113"]
[Annotator "TA"]
[PlyCount "48"]
[EventDate "2022.07.29"]
[EventType "team-tourn"]
[EventCountry "IND"]
[SourceTitle "playchess.com"]
[Source "ChessBase"]
[SourceQuality "1"]
[WhiteTeam "Canada"]
[BlackTeam "Austria"]
[WhiteTeamCountry "CAN"]
[BlackTeamCountry "AUT"]
[TimeControl "40/5400+30:1800+30"]

{[%evp 12,48,4,-6,-4,-14,-14,-8,-16,-31,-31,-175,-164,-209,-200,-552,-525,-540,-524,-962,-862,-1399,-1348,-1609,-1551,-1601,-1451,-1589,-1521,-29990,-29988,-29992,-29992,-29993,-29994,-29994,-29995,-29995,-29996]} 1. d4 {[%emt 0:00:02]} Nf6 {[%emt 0:00:04]} 2. c4 {[%emt 0:00:16]} e6 {[%emt 0:00:04]} 3. Nc3 {[%emt 0:00:10]} Bb4 {[%emt 0:00:04]} 4. e3 {[%emt 0:00:23]} O-O {[%emt 0:00:05]} 5. Nge2 {[%emt 0:00:44]} Re8 {[%emt 0:00:14]} 6. a3 {[%emt 0:00:12]} Bf8 {[%emt 0:00:07]} 7. e4 {[%emt 0:01:00]} d5 {[%emt 0:00:22] E46: Nimzo-Indian: Rubinstein: 4 e3 0-0 5 Ne2 without early Bd3.} 8. e5 {[%emt 0:00:44]} Nfd7 {[%emt 0:00:05]} 9. cxd5 {[%emt 0:06:43]} exd5 {[%emt 0:00:04] The position is equal.} 10. Nxd5 {[%emt 0:01:38]} c5 {[%emt 0:01:03] And now ...cxd4 would win.} 11. f4 {[%emt 0:04:11] [#]} (11. Ndc3 $15) 11... cxd4 $1 $19 {[%emt 0:07:37] aiming for ...Nc6.} 12. Qxd4 {[%emt 0:01:03]} Nc6 {[%emt 0:00:09][%cal Bb8c6,Bc6e5,Be5f3][%mdl 32]} 13. Qc4 {[%emt 0:04:55] [#]} (13. Qd2) 13... Ndxe5 $1 {[%emt 0:12:33][%mdl 512]} 14. fxe5 {[%emt 0:01:23]} Nxe5 {[%emt 0:00:03] [#]} 15. Qd4 $146 {[%emt 0:06:20] [#]} ({Predecessor:} 15. Qb3 Be6 16. Nef4 Bxd5 17. Qxd5 Nd3+ 18. Kd2 Nxf4 19. Qxd8 Raxd8+ 20. Kc2 Re1 21. g3 {0-1 (43) Bednar,M (2264)-Vyskocil,N (2376) Prague 2015}) 15... Bc5 {[%emt 0:00:42][%mdl 512]} 16. Qd2 {[%emt 0:08:41]} (16. Bg5 Qxg5) 16... Bf5 {[%emt 0:11:24]} ({Weaker is} 16... Nc4 17. Qg5 Bg4 18. h3 $11) 17. Ndf4 {[%emt 0:24:28]} Qh4+ {[%emt 0:00:52]} 18. g3 {[%emt 0:04:01]} Nf3+ {[%emt 0:00:05]} 19. Kd1 {[%emt 0:00:13]} Qe7 {[%emt 0:03:48] ( -> ...Rad8)} 20. Nd5 {[%emt 0:13:08]} Qe5 {[%emt 0:00:47] Black mates.} 21. Ndc3 {[%emt 0:03:36]} Nxd2 {[%emt 0:00:46]} 22. Bxd2 {[%emt 0:00:05]} Rad8 {[%emt 0:01:57]} 23. b4 {[%emt 0:01:46] [#]} Rxd2+ $1 {[%emt 0:02:25]} 24. Kxd2 {[%emt 0:00:31]} Qe3+ {[%emt 0:00:04] White did not feel at home in the position after the opening.  Weighted Error Value: White=1.72/Black=0.00 (flawless)} 0-1